bitfinex-derivatives/quotes_BTCF0:USTF0_20260221
["timestamp","ask_amount","ask_price","bid_price","bid_amount"]
[1771667003802,0.029316,68240.0,68231.0,0.01466]
[1771667004002,0.014658,68239.0,68231.0,0.01466]
[1771667004399,0.014658,68240.0,68231.0,0.01466]
[1771667004593,0.014655,68254.0,68232.0,0.01466]
[1771667004794,0.014657,68246.0,68240.0,0.17871737]
[1771667004994,0.014657,68245.0,68237.0,0.014659]
[1771667005194,0.014657,68245.0,68238.0,0.014658]
[1771667005704,0.029314,68246.0,68239.0,0.014658]
[1771667005897,0.014657,68245.0,68239.0,0.014658]
[1771667006407,0.014657,68246.0,68239.0,0.014658]
[1771667006704,0.014657,68246.0,68240.0,0.014658]
[1771667007004,0.014657,68246.0,68239.0,0.014658]
[1771667007005,0.014657,68246.0,68241.0,0.014658]
[1771667007801,0.014657,68246.0,68240.0,0.014658]
[1771667008003,0.014657,68244.0,68239.0,0.014658]
[1771667008703,0.17871737,68250.0,68236.0,0.014659]
[1771667009004,0.014658,68241.0,68236.0,0.014659]
[1771667009506,0.014658,68242.0,68237.0,0.014659]
[1771667009702,0.014658,68241.0,68236.0,0.014659]
[1771667011011,0.014658,68241.0,68236.0,0.029318]
[1771667011309,0.014658,68240.0,68232.0,0.01466]
[1771667012510,0.014659,68238.0,68232.0,0.01466]
[1771667013713,0.014659,68237.0,68231.0,0.01466]
[1771667017115,0.014659,68237.0,68230.0,0.74009553]
[1771667019215,0.014658,68241.0,68230.0,0.74009553]
[1771667019417,0.014658,68239.0,68230.0,0.9041529]
[1771667020020,0.014658,68239.0,68231.0,0.01466]
[1771667020325,0.014658,68239.0,68231.0,0.02932]
[1771667021419,0.014658,68240.0,68233.0,0.014659]
[1771667022118,0.014658,68239.0,68233.0,0.014659]
[1771667023320,0.014658,68239.0,68232.0,0.01466]
[1771667024018,0.014659,68238.0,68232.0,0.01466]
[1771667024220,0.014659,68236.0,68230.0,0.17871737]
[1771667024526,0.014659,68236.0,68228.0,0.01466]
[1771667024820,0.014659,68237.0,68230.0,0.01466]
[1771667025009,0.014659,68237.0,68228.0,0.01466]
[1771667025010,0.014659,68237.0,68229.0,0.01466]
[1771667025413,0.014659,68237.0,68228.0,0.01466]
[1771667025816,0.014659,68238.0,68229.0,0.01466]
[1771667026016,0.014659,68238.0,68229.0,0.71115787]
[1771667026322,0.014659,68237.0,68229.0,0.71115787]
[1771667027123,0.014659,68237.0,68230.0,0.01466]
[1771667028923,0.014659,68238.0,68230.0,0.01466]
[1771667029311,0.23282307,68237.0,68230.0,0.01466]
[1771667029514,0.014658,68239.0,68230.0,0.01466]
[1771667029726,0.23282301,68238.0,68230.0,0.01466]
[1771667030024,0.23282301,68237.0,68230.0,0.01466]
[1771667030221,0.014658,68239.0,68230.0,0.01466]
[1771667030424,0.23284313,68238.0,68232.0,0.01466]
[1771667030723,0.23284313,68237.0,68232.0,0.01466]
[1771667030925,0.014658,68239.0,68232.0,0.01466]
[1771667031127,0.23284313,68238.0,68232.0,0.01466]
[1771667031324,0.23284313,68237.0,68232.0,0.01466]
[1771667031527,0.014658,68239.0,68232.0,0.01466]
[1771667031734,0.232848,68238.0,68232.0,0.01466]
[1771667031919,0.232848,68237.0,68232.0,0.01466]
[1771667032215,0.014658,68239.0,68232.0,0.01466]
[1771667032417,0.23285356,68238.0,68232.0,0.01466]
[1771667032623,0.23285356,68237.0,68232.0,0.01466]
[1771667032823,0.014658,68240.0,68232.0,0.01466]
[1771667033023,0.23293273,68239.0,68232.0,0.01466]
[1771667033234,0.23293273,68238.0,68232.0,0.01466]
[1771667033436,0.23293273,68237.0,68232.0,0.01466]
[1771667033731,0.029316,68240.0,68232.0,0.01466]
[1771667033924,0.23293889,68239.0,68232.0,0.01466]
[1771667034124,0.23293889,68238.0,68232.0,0.01466]
[1771667034325,0.029316,68240.0,68232.0,0.01466]
[1771667034524,0.23294585,68239.0,68232.0,0.01466]
[1771667034725,0.23294585,68238.0,68232.0,0.01466]
[1771667034927,0.029316,68240.0,68232.0,0.01466]
[1771667035132,0.23294585,68239.0,68232.0,0.01466]
[1771667035336,0.23294585,68238.0,68232.0,0.01466]
[1771667035541,0.014658,68240.0,68232.0,0.01466]
[1771667035833,0.23294519,68239.0,68232.0,0.01466]
[1771667036030,0.014658,68240.0,68232.0,0.01466]
[1771667036031,0.23294519,68238.0,68232.0,0.01466]
[1771667036331,0.014658,68240.0,68232.0,0.01466]
[1771667036632,0.232945,68239.0,68232.0,0.01466]
[1771667036832,0.232945,68238.0,68232.0,0.01466]
[1771667037019,0.014658,68240.0,68232.0,0.01466]
[1771667037224,0.232945,68239.0,68232.0,0.01466]
[1771667037424,0.232945,68238.0,68232.0,0.01466]
[1771667040329,0.232945,68238.0,68230.0,0.0719691]
[1771667040729,0.247604,68238.0,68230.0,0.0719691]
[1771667041032,0.232945,68237.0,68230.0,0.0866291]
[1771667041334,0.014659,68238.0,68230.0,0.0866291]
[1771667041538,0.014659,68238.0,68231.0,0.01466]
[1771667042232,0.014657,68243.0,68230.0,0.0719691]
[1771667042426,0.014658,68241.0,68233.0,0.014659]
[1771667042737,0.23294673,68240.0,68233.0,0.014659]
[1771667043032,0.23294673,68239.0,68233.0,0.014659]
[1771667043333,0.23294673,68238.0,68233.0,0.014659]
[1771667043532,0.014657,68244.0,68236.0,0.014659]
[1771667043735,0.24760434,68243.0,68234.0,0.014659]
[1771667043933,0.23294734,68242.0,68234.0,0.014659]
[1771667044136,0.23294734,68241.0,68234.0,0.014659]
[1771667044337,0.23294734,68240.0,68236.0,0.014659]
[1771667044635,0.23294734,68239.0,68236.0,0.014659]
[1771667044935,0.23294734,68238.0,68236.0,0.014659]
[1771667045125,0.23294734,68237.0,68236.0,0.014659]
[1771667045927,0.23294734,68237.0,68232.0,0.01466]
[1771667046128,0.23294734,68236.0,68233.0,0.014659]
[1771667046429,0.23294734,68235.0,68232.0,0.01466]
[1771667046627,0.23294734,68234.0,68232.0,0.01466]
[1771667046829,0.014658,68240.0,68232.0,0.01466]
[1771667047135,0.23205895,68239.0,68232.0,0.01466]
[1771667047334,0.23205895,68238.0,68232.0,0.01466]
[1771667047534,0.23205895,68237.0,68232.0,0.01466]
[1771667047737,0.23205895,68236.0,68232.0,0.01466]
[1771667047938,0.23205895,68235.0,68232.0,0.01466]
[1771667048127,0.23205895,68234.0,68232.0,0.01466]
[1771667048327,0.014658,68240.0,68232.0,0.01466]
[1771667048528,0.23206392,68239.0,68232.0,0.01466]
[1771667048735,0.23206392,68238.0,68232.0,0.01466]
[1771667048936,0.23206392,68237.0,68232.0,0.01466]
[1771667049133,0.23206392,68236.0,68232.0,0.01466]
[1771667049334,0.23206392,68235.0,68232.0,0.01466]
[1771667049531,0.23206392,68234.0,68231.0,0.01466]
[1771667049731,0.014658,68240.0,68231.0,0.01466]
[1771667050037,0.23206683,68239.0,68231.0,0.01466]
[1771667050240,0.23206683,68238.0,68231.0,0.01466]
[1771667050532,0.23206683,68237.0,68232.0,0.01466]
[1771667050737,0.23206683,68236.0,68232.0,0.01466]
[1771667051033,8.3e-07,68235.0,68234.0,0.014659]
[1771667051338,0.014657,68243.0,68234.0,0.014659]
[1771667051738,0.014658,68242.0,68234.0,0.014659]
[1771667052038,0.014657,68244.0,68235.0,0.014659]
[1771667052532,0.014657,68243.0,68235.0,0.014659]
[1771667053932,0.014657,68246.0,68239.0,0.014658]
[1771667054123,0.014657,68245.0,68237.0,0.014659]
[1771667054328,0.014657,68243.0,68236.0,0.014659]
[1771667055139,0.014657,68243.0,68237.0,0.014659]
[1771667056738,0.014657,68243.0,68237.0,0.029318]
[1771667056932,0.014657,68243.0,68237.0,0.014659]
[1771667057339,0.014657,68243.0,68237.0,0.029318]
[1771667057638,0.014657,68243.0,68238.0,0.014658]
[1771667059037,0.014657,68243.0,68234.0,0.014659]
[1771667059337,0.25447661,68257.0,68232.0,0.68507399]
[1771667059338,0.014658,68239.0,68232.0,0.01466]
[1771667059729,0.014657,68245.0,68230.0,0.0573091]
[1771667059933,0.014659,68237.0,68230.0,0.01466]
[1771667060439,0.014659,68237.0,68229.0,0.01466]
[1771667060740,0.029318,68237.0,68228.0,0.014661]
[1771667060934,0.029318,68237.0,68227.0,0.05743918]
[1771667060935,0.014659,68235.0,68227.0,0.00013008]
[1771667061330,0.014659,68234.0,68227.0,0.00013008]
[1771667062639,0.01466,68233.0,68227.0,0.00013008]
[1771667063944,0.01466,68232.0,68227.0,0.00013008]
[1771667066344,0.029318,68237.0,68227.0,0.00013008]
[1771667067141,0.014659,68237.0,68227.0,0.00013008]
[1771667067340,0.014659,68237.0,68227.0,0.01479108]
[1771667067735,0.014659,68237.0,68228.0,0.014661]
[1771667068241,0.014659,68237.0,68229.0,0.01466]
[1771667074244,0.014659,68237.0,68228.0,0.014661]
[1771667074943,0.014659,68237.0,68229.0,0.01466]
[1771667078251,0.014659,68237.0,68225.0,0.014661]
[1771667078252,0.014659,68236.0,68225.0,0.014661]
[1771667078441,0.014659,68236.0,68227.0,0.014661]
[1771667078643,0.014659,68236.0,68228.0,0.014661]
[1771667079254,0.00011606,68235.0,68228.0,0.014661]
[1771667081453,0.00011606,68235.0,68228.0,0.029322]
[1771667082756,0.014661,68226.0,68217.0,0.014663]
[1771667082959,0.014661,68227.0,68218.0,0.014663]
[1771667083349,0.014661,68226.0,68217.0,0.014663]
[1771667084454,0.014661,68225.0,68217.0,0.014663]
[1771667084854,0.014662,68223.0,68215.0,0.014663]
[1771667085050,0.014662,68223.0,68217.0,0.00092]
[1771667085255,0.014662,68223.0,68215.0,0.014663]
[1771667085561,0.014662,68223.0,68213.0,0.014664]
[1771667085857,0.014662,68223.0,68215.0,0.014663]
[1771667086854,0.014662,68223.0,68216.0,0.014663]
[1771667087557,0.014662,68224.0,68217.0,0.014663]
[1771667088953,0.014662,68224.0,68217.0,0.029326]
[1771667089153,0.014662,68224.0,68218.0,0.014663]
[1771667089353,0.014662,68223.0,68217.0,0.014663]
[1771667089556,0.014661,68225.0,68217.0,0.014663]
[1771667089859,0.01466,68229.0,68210.0,0.70127661]
[1771667090154,0.014661,68227.0,68222.0,0.014662]
[1771667090355,0.2166744,68228.0,68222.0,0.014662]
[1771667090356,0.014661,68228.0,68222.0,0.014662]
[1771667090558,0.2166341,68227.0,68222.0,0.014662]
[1771667090760,0.014661,68227.0,68222.0,0.014662]
[1771667091058,0.01466,68229.0,68220.0,0.014662]
[1771667091253,0.014661,68225.0,68220.0,0.014662]
[1771667091559,0.014662,68224.0,68219.0,0.014663]
[1771667091858,0.014661,68227.0,68219.0,0.014663]
[1771667092151,0.014661,68225.0,68219.0,0.014663]
[1771667092359,0.014661,68226.0,68220.0,0.014662]
[1771667092555,0.014661,68227.0,68220.0,0.014662]
[1771667092755,0.01466,68229.0,68220.0,0.014662]
[1771667092756,0.014661,68225.0,68220.0,0.014662]
[1771667093253,0.014661,68227.0,68220.0,0.014662]
[1771667093757,0.014661,68225.0,68220.0,0.014662]
[1771667093959,0.014661,68225.0,68219.0,0.014663]
[1771667094959,0.014661,68225.0,68217.0,0.014663]
[1771667095159,0.01466,68231.0,68226.0,0.014661]
[1771667095354,0.01466,68233.0,68223.0,0.014662]
[1771667095662,0.014661,68229.0,68223.0,0.014662]
[1771667095859,0.01466,68231.0,68223.0,0.014662]
[1771667096059,0.014661,68228.0,68223.0,0.014662]
[1771667096262,0.014661,68228.0,68222.0,0.014662]
[1771667097358,0.014661,68229.0,68222.0,0.014662]
[1771667097965,0.014661,68228.0,68222.0,0.014662]
[1771667098163,0.01466,68233.0,68226.0,0.014661]
[1771667098461,0.01466,68233.0,68225.0,0.014661]
[1771667098958,0.01466,68231.0,68225.0,0.014661]
[1771667099257,0.01466,68231.0,68224.0,0.014661]
[1771667100061,0.01466,68231.0,68224.0,0.64396751]
[1771667100261,0.01466,68232.0,68225.0,0.014661]
[1771667100563,0.01466,68233.0,68226.0,0.014661]
[1771667101061,0.01466,68233.0,68225.0,0.014661]
[1771667101362,0.01466,68233.0,68226.0,0.014661]
[1771667101558,0.01466,68230.0,68224.0,0.64396751]
[1771667101759,0.01466,68229.0,68224.0,0.65862851]
[1771667102666,0.01466,68230.0,68224.0,0.65862851]
[1771667102966,0.01466,68231.0,68225.0,0.014661]
[1771667104061,0.01466,68232.0,68222.0,0.014662]
[1771667104263,0.01466,68231.0,68225.0,0.014661]
[1771667104467,0.01466,68232.0,68227.0,0.014661]
[1771667104765,0.01466,68232.0,68226.0,0.014661]
[1771667105462,0.01466,68231.0,68226.0,0.014661]
[1771667105965,0.014658,68240.0,68219.0,0.17884979]
[1771667105966,0.01466,68230.0,68220.0,0.014662]
[1771667106158,0.014661,68227.0,68220.0,0.014662]
[1771667106361,0.014661,68227.0,68219.0,0.17884979]
[1771667106968,0.014661,68227.0,68219.0,0.19351279]
[1771667107369,0.014661,68226.0,68219.0,0.17884979]
[1771667107570,0.014661,68226.0,68218.0,0.014663]
[1771667108069,0.01466,68229.0,68221.0,0.014662]
[1771667109271,0.01466,68230.0,68223.0,0.014662]
[1771667109867,0.01466,68233.0,68223.0,0.014662]
[1771667110167,0.049312,68232.0,68226.0,0.014661]
[1771667110471,0.014659,68234.0,68227.0,0.014661]
[1771667110871,0.014659,68234.0,68226.0,0.014661]
[1771667112673,0.014659,68236.0,68226.0,0.014661]
[1771667112867,0.01466,68234.0,68226.0,0.014661]
[1771667113174,0.01466,68233.0,68226.0,0.014661]
[1771667114073,0.014659,68236.0,68228.0,0.014661]
[1771667114272,0.014659,68235.0,68228.0,0.014661]
[1771667115069,0.014659,68235.0,68229.0,0.00088]
[1771667115272,0.014659,68235.0,68229.0,0.01466]
[1771667115475,0.014659,68236.0,68228.0,0.029322]
[1771667115476,0.014659,68234.0,68228.0,0.029322]
[1771667115677,0.014659,68234.0,68229.0,0.01466]
[1771667118171,0.01466,68232.0,68226.0,0.014661]
[1771667118379,0.01466,68230.0,68224.0,0.014661]
[1771667118572,0.01466,68230.0,68226.0,0.014661]
[1771667118777,0.01466,68231.0,68226.0,0.014661]
[1771667119180,0.01466,68231.0,68226.0,0.029322]
[1771667119380,0.01466,68232.0,68222.0,0.014662]
[1771667119680,0.01466,68231.0,68223.0,0.014662]
[1771667120370,0.01466,68231.0,68222.0,0.014662]
[1771667121081,0.01466,68231.0,68225.0,0.00092]
[1771667121278,0.014661,68229.0,68221.0,0.014662]
[1771667121580,0.014661,68228.0,68221.0,0.014662]
[1771667122079,0.014661,68228.0,68220.0,0.014662]
[1771667122481,0.014661,68227.0,68219.0,0.19351179]
[1771667123183,0.014661,68227.0,68220.0,0.014662]
[1771667124080,0.01466,68231.0,68222.0,0.6460591]
[1771667124278,0.01466,68233.0,68222.0,0.6607211]
[1771667124477,0.01466,68231.0,68223.0,0.014662]
[1771667125084,0.01466,68230.0,68222.0,0.6607211]
[1771667125285,0.01466,68233.0,68224.0,0.014661]
[1771667125491,0.014659,68234.0,68225.0,0.014661]
[1771667126293,0.014659,68234.0,68226.0,0.014661]
[1771667127501,0.014659,68234.0,68227.0,0.014661]
[1771667128200,0.19958218,68233.0,68227.0,0.014661]
[1771667128401,0.19958218,68232.0,68228.0,0.014661]
[1771667128698,0.014659,68236.0,68228.0,0.014661]
[1771667128901,0.19958224,68235.0,68228.0,0.014661]
[1771667129094,0.19958224,68234.0,68228.0,0.014661]
[1771667129296,0.029318,68236.0,68228.0,0.014661]
[1771667129297,0.19958224,68233.0,68228.0,0.014661]
[1771667129497,0.19958224,68232.0,68228.0,0.014661]
[1771667129699,0.014659,68236.0,68228.0,0.014661]
[1771667129998,0.19957969,68235.0,68228.0,0.014661]
[1771667130198,0.19957969,68234.0,68228.0,0.014661]
[1771667130490,0.19957969,68233.0,68227.0,0.014661]
[1771667130692,0.19957969,68232.0,68227.0,0.014661]
[1771667130992,0.014659,68235.0,68227.0,0.014661]
[1771667131192,0.19957246,68234.0,68227.0,0.014661]
[1771667131388,0.19957246,68233.0,68227.0,0.014661]
[1771667131601,0.19957246,68232.0,68227.0,0.014661]
[1771667131804,0.014659,68234.0,68227.0,0.014661]
[1771667132100,0.19956787,68233.0,68227.0,0.014661]
[1771667132298,0.19956787,68232.0,68227.0,0.014661]
[1771667132499,0.014659,68235.0,68227.0,0.014661]
[1771667132702,0.1995635,68234.0,68227.0,0.014661]
[1771667132898,0.1995635,68233.0,68227.0,0.014661]
[1771667133101,0.1995635,68232.0,68227.0,0.014661]
[1771667133303,0.014659,68234.0,68227.0,0.014661]
[1771667133602,0.1995598,68233.0,68227.0,0.014661]
[1771667133802,0.1995598,68232.0,68227.0,0.014661]
[1771667134100,0.1995598,68231.0,68227.0,0.014661]
[1771667134301,0.014659,68234.0,68227.0,0.014661]
[1771667134302,0.1995598,68230.0,68227.0,0.014661]
[1771667134503,0.1995598,68229.0,68227.0,0.014661]
[1771667134702,0.1995598,68228.0,68227.0,0.014661]
[1771667135803,0.1995598,68228.0,68226.0,0.014661]
[1771667136006,0.014659,68234.0,68226.0,0.014661]
[1771667136304,0.19955446,68233.0,68226.0,0.014661]
[1771667136604,0.19955446,68232.0,68226.0,0.014661]
[1771667136808,0.19955446,68231.0,68226.0,0.014661]
[1771667137107,0.19955446,68230.0,68226.0,0.014661]
[1771667137305,0.19955446,68229.0,68226.0,0.014661]
[1771667137511,0.19955446,68228.0,68226.0,0.014661]
[1771667137701,0.014659,68234.0,68226.0,0.014661]
[1771667137899,0.19955167,68233.0,68226.0,0.014661]
[1771667138193,0.19955167,68232.0,68226.0,0.014661]
[1771667138398,0.19955167,68231.0,68226.0,0.014661]
[1771667138594,0.19955167,68230.0,68226.0,0.014661]
[1771667138806,0.19955167,68229.0,68226.0,0.014661]
[1771667139006,0.19955167,68228.0,68226.0,0.014661]
[1771667139198,0.014659,68234.0,68226.0,0.014661]
[1771667139400,0.19955096,68233.0,68226.0,0.014661]
[1771667139601,0.19955096,68232.0,68226.0,0.014661]
[1771667139799,0.19955096,68231.0,68226.0,0.014661]
[1771667139994,0.19955096,68230.0,68226.0,0.014661]
[1771667140300,0.19955096,68229.0,68226.0,0.014661]
[1771667140598,0.19955096,68228.0,68226.0,0.014661]
[1771667140799,0.014659,68234.0,68226.0,0.014661]
[1771667140999,0.19955059,68233.0,68226.0,0.014661]
[1771667141207,0.19955059,68232.0,68226.0,0.014661]
[1771667141408,0.19955059,68231.0,68226.0,0.014661]
[1771667141709,0.19955059,68230.0,68226.0,0.014661]
[1771667142008,0.19955059,68229.0,68226.0,0.014661]
[1771667142209,0.19955059,68228.0,68226.0,0.014661]
[1771667142405,0.014659,68234.0,68226.0,0.014661]
[1771667142605,0.19954951,68233.0,68226.0,0.014661]
[1771667142806,0.19954951,68232.0,68226.0,0.014661]
[1771667143006,0.19954951,68231.0,68228.0,0.01466]
[1771667143207,0.19954951,68230.0,68228.0,0.01466]
[1771667143407,0.19954951,68229.0,68228.0,0.01466]
[1771667143709,0.014659,68235.0,68228.0,0.01466]
[1771667143911,0.19954885,68234.0,68227.0,0.014661]
[1771667144112,0.014659,68235.0,68227.0,0.014661]
[1771667144312,0.19954851,68234.0,68227.0,0.014661]
[1771667144514,0.014659,68235.0,68227.0,0.014661]
[1771667144717,0.19954851,68234.0,68227.0,0.014661]
[1771667144915,0.014659,68235.0,68227.0,0.014661]
[1771667145115,0.19954851,68234.0,68227.0,0.014661]
[1771667145315,0.014659,68235.0,68227.0,0.014661]
[1771667145617,0.19954853,68234.0,68227.0,0.014661]
[1771667145818,0.014659,68234.0,68227.0,0.014661]
[1771667146018,0.014659,68234.0,68226.0,0.014661]
[1771667146218,0.014659,68234.0,68227.0,0.014661]
[1771667149519,0.01466,68231.0,68220.0,0.014662]
[1771667149718,0.01466,68231.0,68219.0,0.17884979]
[1771667149719,0.014659,68234.0,68226.0,0.014661]
[1771667149922,0.21421682,68233.0,68226.0,0.014661]
[1771667150218,0.01466,68233.0,68226.0,0.014661]
[1771667150419,0.014659,68235.0,68227.0,0.014661]
[1771667150721,0.21422126,68234.0,68227.0,0.014661]
[1771667150919,0.19956226,68233.0,68227.0,0.014661]
[1771667151214,0.014659,68234.0,68227.0,0.014661]
[1771667151419,0.19956937,68233.0,68225.0,0.014661]
[1771667151631,0.014659,68234.0,68225.0,0.014661]
[1771667151817,0.19956937,68233.0,68225.0,0.014661]
[1771667152019,0.014659,68234.0,68225.0,0.014661]
[1771667152319,0.19956937,68233.0,68225.0,0.014661]
[1771667152519,0.01466,68233.0,68225.0,0.014661]
[1771667156328,0.01466,68233.0,68226.0,0.014661]
[1771667157029,0.01466,68233.0,68225.0,0.014661]
[1771667157832,0.01466,68232.0,68224.0,0.014661]
[1771667159130,0.01466,68232.0,68225.0,0.014661]
[1771667160328,0.01466,68231.0,68224.0,0.014661]
[1771667160819,0.01466,68232.0,68224.0,0.014661]
[1771667165529,0.01466,68232.0,68225.0,0.014661]
[1771667171735,0.01466,68231.0,68224.0,0.014661]
[1771667171933,0.01466,68232.0,68223.0,0.014662]
[1771667172235,0.01466,68232.0,68224.0,0.014661]
[1771667174639,0.01466,68232.0,68225.0,0.014661]
[1771667175333,0.01466,68233.0,68225.0,0.014661]
[1771667183850,0.19945872,68232.0,68225.0,0.014661]
[1771667184138,0.01466,68233.0,68225.0,0.014661]
[1771667184139,0.19945872,68231.0,68225.0,0.014661]
[1771667184343,0.19945872,68230.0,68225.0,0.014661]
[1771667184544,0.19945872,68229.0,68225.0,0.014661]
[1771667184746,0.19945872,68228.0,68225.0,0.014661]
[1771667184948,0.01466,68233.0,68225.0,0.014661]
[1771667185249,0.19945889,68232.0,68225.0,0.014661]
[1771667185430,0.19945889,68231.0,68225.0,0.014661]
[1771667185634,0.19945889,68230.0,68225.0,0.014661]
[1771667185841,0.19945889,68229.0,68225.0,0.014661]
[1771667186142,0.19945889,68228.0,68225.0,0.014661]
[1771667186343,0.01466,68233.0,68225.0,0.014661]
[1771667186544,0.19945933,68232.0,68225.0,0.014661]
[1771667186742,0.19945933,68231.0,68225.0,0.014661]
[1771667186944,0.19945933,68230.0,68225.0,0.014661]
[1771667187143,0.19945933,68229.0,68225.0,0.014661]
[1771667187343,0.19945933,68228.0,68225.0,0.014661]
[1771667187544,0.01466,68233.0,68225.0,0.014661]
[1771667187845,0.1994596,68232.0,68225.0,0.014661]
[1771667188044,0.1994596,68231.0,68225.0,0.014661]
[1771667188244,0.1994596,68230.0,68225.0,0.014661]
[1771667188445,0.1994596,68229.0,68225.0,0.014661]
[1771667188745,0.1994596,68228.0,68225.0,0.014661]
[1771667188946,0.01466,68233.0,68224.0,0.014661]
[1771667189158,0.19945954,68232.0,68223.0,0.014662]
[1771667189349,0.19945954,68231.0,68225.0,0.014661]
[1771667189539,0.01466,68233.0,68225.0,0.014661]
[1771667189540,0.19945954,68230.0,68225.0,0.014661]
[1771667189740,0.19945954,68229.0,68225.0,0.014661]
[1771667189939,0.19945954,68228.0,68225.0,0.014661]
[1771667190239,0.01466,68233.0,68225.0,0.014661]
[1771667190441,0.19945913,68232.0,68225.0,0.014661]
[1771667190634,0.19945913,68231.0,68225.0,0.014661]
[1771667190839,0.19945913,68230.0,68225.0,0.014661]
[1771667191040,0.19945913,68229.0,68225.0,0.014661]
[1771667191347,0.19945913,68228.0,68225.0,0.014661]
[1771667191651,0.01466,68233.0,68225.0,0.014661]
[1771667191843,0.19945889,68232.0,68225.0,0.014661]
[1771667192043,0.19945889,68231.0,68225.0,0.014661]
[1771667192347,0.19945889,68230.0,68225.0,0.014661]
[1771667192549,0.19945889,68229.0,68225.0,0.014661]
[1771667192753,0.19945889,68228.0,68225.0,0.014661]
[1771667193048,0.01466,68233.0,68225.0,0.014661]
[1771667193250,0.19945883,68232.0,68225.0,0.014661]
[1771667193442,0.19945883,68231.0,68225.0,0.014661]
[1771667193648,0.19945883,68230.0,68225.0,0.014661]
[1771667193850,0.014659,68234.0,68226.0,0.014661]
[1771667196247,0.014659,68235.0,68226.0,0.014661]
[1771667196444,0.014657,68247.0,68230.0,0.01466]
[1771667196660,0.014658,68242.0,68234.0,0.014659]
[1771667197451,0.014658,68242.0,68234.0,0.029318]
[1771667197848,0.014658,68242.0,68235.0,0.014659]
[1771667198051,0.014657,68243.0,68236.0,0.014659]
[1771667201249,0.014658,68242.0,68236.0,0.014659]
[1771667201456,0.014658,68241.0,68235.0,0.014659]
[1771667201848,0.014658,68241.0,68234.0,0.014659]
[1771667202553,0.014658,68240.0,68234.0,0.014659]
[1771667203358,0.014658,68240.0,68232.0,0.01466]
[1771667203359,0.014659,68238.0,68231.0,0.01466]
[1771667204763,0.029318,68238.0,68230.0,0.07198519]
[1771667206362,0.029318,68238.0,68230.0,0.05732519]
[1771667206865,0.014659,68238.0,68230.0,0.05732519]
[1771667207157,0.014658,68239.0,68230.0,0.07198519]
[1771667207560,0.014659,68238.0,68230.0,0.07198519]
[1771667207754,0.014658,68240.0,68231.0,0.02932]
[1771667208062,0.014658,68239.0,68231.0,0.01466]
[1771667208665,0.014658,68242.0,68230.0,0.05732519]
[1771667209056,0.014658,68242.0,68234.0,0.014659]
[1771667209257,0.029314,68245.0,68235.0,0.014659]
[1771667209657,0.014656,68249.0,68234.0,0.014659]
[1771667209658,0.014657,68246.0,68236.0,0.014659]
[1771667209858,0.014657,68244.0,68236.0,0.014659]
[1771667211266,0.014657,68244.0,68238.0,0.014658]
[1771667211466,0.029314,68246.0,68238.0,0.014658]
[1771667211766,0.014657,68245.0,68238.0,0.014658]
[1771667212367,0.014657,68245.0,68238.0,0.029316]
[1771667212569,0.014657,68245.0,68239.0,0.014658]
[1771667213968,0.014656,68251.0,68245.0,0.014657]
[1771667214168,0.014656,68250.0,68244.0,0.014657]
[1771667214367,0.014656,68249.0,68244.0,0.014657]
[1771667215070,0.014655,68253.0,68248.0,0.014656]
[1771667216368,0.014655,68253.0,68248.0,0.015656]
[1771667216766,0.014655,68253.0,68248.0,0.014656]
[1771667217161,0.014655,68252.0,68248.0,0.014656]
[1771667217362,0.014656,68250.0,68244.0,0.014657]
[1771667217563,0.014656,68250.0,68243.0,0.014657]
[1771667218571,0.014656,68250.0,68242.0,0.014658]
[1771667219362,0.014657,68248.0,68242.0,0.014658]
[1771667219565,0.014657,68248.0,68241.0,0.014658]
[1771667219868,0.029314,68248.0,68241.0,0.014658]
[1771667220261,0.014657,68247.0,68241.0,0.014658]
[1771667221270,0.014657,68247.0,68239.0,0.66119622]
[1771667223374,0.014656,68249.0,68242.0,0.014658]
[1771667223673,0.014656,68251.0,68244.0,0.014657]
[1771667223875,0.014656,68252.0,68244.0,0.014657]
[1771667224176,0.014655,68253.0,68244.0,0.014657]
[1771667224177,0.014656,68251.0,68244.0,0.014657]
[1771667224376,0.014656,68252.0,68244.0,0.014657]
[1771667224876,0.014656,68251.0,68244.0,0.014657]
[1771667225076,0.014656,68251.0,68243.0,0.014657]
[1771667225378,0.014655,68255.0,68242.0,0.014658]
[1771667225379,0.029312,68250.0,68242.0,0.014658]
[1771667225870,0.014656,68249.0,68242.0,0.014658]
[1771667229382,0.014656,68251.0,68244.0,0.014657]
[1771667229977,0.014656,68251.0,68244.0,0.029314]
[1771667230977,0.014656,68251.0,68245.0,0.014657]
[1771667231179,0.014656,68252.0,68245.0,0.014657]
[1771667231371,0.029312,68252.0,68245.0,0.014657]
[1771667232177,0.014656,68252.0,68245.0,0.014657]
[1771667232375,0.014656,68252.0,68246.0,0.014657]
[1771667236382,0.014656,68250.0,68244.0,0.014657]
[1771667236782,0.029312,68250.0,68244.0,0.014657]
[1771667237279,0.014656,68249.0,68244.0,0.014657]
[1771667238484,0.014656,68249.0,68243.0,0.014657]
[1771667238885,0.014656,68250.0,68244.0,0.014657]
[1771667239485,0.014656,68248.0,68242.0,0.014658]
[1771667239886,0.014656,68250.0,68243.0,0.014657]
[1771667240391,0.014655,68255.0,68244.0,0.61692528]
[1771667240680,0.64116659,68271.0,68247.0,0.014657]
[1771667240681,0.014655,68254.0,68247.0,0.014657]
[1771667240882,0.014655,68256.0,68247.0,0.014657]
[1771667241087,0.014654,68258.0,68247.0,0.014657]
[1771667241287,0.014655,68255.0,68248.0,0.17874808]
[1771667241484,0.014655,68255.0,68247.0,0.014657]
[1771667241694,0.014655,68254.0,68247.0,0.014657]
[1771667241889,0.014655,68254.0,68246.0,0.61692528]